{"text_format":"2","workbook":"xlsx","n_sheets":1,"sheets":[" SUMMARY-C"],"not_rendered":{"charts":0,"images":1,"macros":0,"external_links":0,"defined_names":1,"comments":0,"pivot_tables":0},"unopened":[],"bounds":{"document_bytes":16777216,"sheet_cells":100000,"run_cost":"one","rows_first":2000,"rows_last":500,"rows_between":2000,"halvings":0,"cell_chars":16384,"cell_head_chars":4096},"cells_cut":0,"cells_raw":0,"read":"whole","date_system":"1900"}

{"sheet":" SUMMARY-C","index":0,"n_rows":216,"n_cols":7,"rows_kept":216,"cut":false,"hidden":false,"merged":[[116,6,117,6],[144,1,145,1],[144,2,145,2],[144,3,145,3],[144,4,145,4],[144,5,145,5],[144,6,145,6],[116,5,117,5],[116,1,117,1],[116,2,117,2],[116,3,117,3],[116,4,117,4],[45,1,45,3],[41,6,42,6],[0,1,0,6],[1,1,1,6],[2,1,2,6],[41,1,42,1],[41,2,42,2],[41,3,42,3],[41,4,42,4],[41,5,42,5],[7,1,8,1],[7,2,8,2],[7,3,8,3],[7,4,8,4],[7,5,8,5],[7,6,8,6],[7,7,8,7],[3,1,4,6],[3,7,4,7]]}
[null,"Bill of Quantity"]
[null," Full Rehabilitation of Abdulrahman Al-Nasser Primary School for Boys (12 Classes) in Habbaniyah"]
[null," Anbar - Habbaniyah City"]
[null,"General Obligations Included within the Contract Cost:\n\n\n1- All required works are subjected to the Iraqi's Standard Specifications and attached specifications. The measurements of all quantities of the implemented works will be calculated based on the actual findings and dimensions according to the engineering specifications.\n \n2- All used materials must be subjected to the necessary laboratory tests both inside and outside the country as required. UNDP engineers have the right to re-test any materials in the project in a different laboratory for some cases.\n \n3- The contractor is required to obtain an official approval by the supervisory committee before supplying any required materials, devices, systems...etc. or starting the implementation of any new items; including the provision of samples, mockup, catalogues for testing/inspection required to obtain this official approval.\n \n4- The contractor is responsible for the safety of all activities in the site including the provision of all occupational safety requirements for all employees and workers (PPE).\n \n5- The contractor cannot demand all the quantities mentioned in the BOQ, if the final measurement will show less quantities.\n \n6- All the concrete works in the project should be provided by approved ready mix concrete batching plant which should be subjected to all quality control tests periodically and all its gauges and materials balances are calibrated by Central Organization for Standardization and Quality Control (COSQR). The calibration certificates must be in force and not-expired.\n \n7- The contractor is required to provide and Install a prefabricated office of two rooms at least including kitchen and toilet for the supervisory committee of the project with all required furniture, electrical, mechanical and communications services. Also, it is required to provide only a one means of transport with its driver for the following-up of the project implementation by the committee.\n \n8-   The maintenance works of the defect liability period (12 months) includes all civil, sanitary, electrical and mechanical works."]
[]
[null,"#","Item","Unit","Quantity","Price $","Total $"]
[null,"A : Site Preparation Works"]
[null,1,"Site preparation:\nSupply materials, tools, heavy construction equipment and manpower to demolish and remove all existing old buildings, school yards, fence walls, foundations, concrete structures, walls, blocks...etc. which existing up and down the ground level and 25cm of the existing soil of project ground. All project area shall be cleared of grass and weeds to at least a depth of 30 cm. Cleared of structures, pavement, sidewalks, concrete or masonry debris, trees, logs, upturned stumps, loose boulders, and any other objectionable material of any kind which would interfere with the performance or completion of the work, create a hazard to safety, or impair the subsequent usefulness of the work, or obstruct its operation. The price should include dewatering of surface, ground water and ponds within the area of the project (if any). In addition to remove trees and other natural vegetation outside and inside the actual lines of project area, and all debris from the site to a dump site approved by the relevant authority. leveling and compacting all the project area (after removal of 25 cm of the existing project soil) using heavy construction equipment - single drum sheep feet and vibratory road roller compactor, the natural ground compaction of the project should not be less than 90% of MDD to comply with the modified proctor test and marking and planning the buildings of the project,the work includes uploading, transportation and offloading all existing materials, furniture inside the project to End User warehouses before demolishing the buildings and delivering them by official storage documents according to instruction of the supervisory committee, cleaning and washing all parts of the project after completing the construction works. All needed work to complete the job will be included within the price.","M2",5500,null,{"$f":"E8*F8","v":0}]
[]
[null,2,"Spreading Sub-base Layers\nSupply of materials, tools and manpower for filling (in layers not exceeding 25cm height, including compaction up to 95% of MDD to comply with the modified proctor test ) with sub base (type B) up to the required levels for the area of project, with required treatment. All needed work to complete the job will be included within the price.","M3",2600,null,{"$f":"E10*F10","v":0}]
[null,3,"Permanent Signs:                                                                                             Provision of materials, tools, manpower to  install permanent signage (60cm x 40cm), printed on white aluminum composite (trade name – Dibond) to be placed in a prominent position at the main entry door of the site, at eye level. and all requirements to complete the job","Ea.",1,null,{"$f":"E11*F11","v":0}]
[null,4,"Temporary Signs:                                                                                             Provision of materials, tools, manpower to  install temporary signage (W 190cm x H 90cm) printed on mounted plastic sheeting composite (trade name – Dibond) fixed on tow steel legs (3” steel pipe diameter, 2m height) and all requirements to complete the job.","Ea.",1,null,{"$f":"E12*F12","v":0}]
[null,"B: Civil Works"]
[null,"B-1: Concrete Works    "]
[null,5," Laying One Layer of Thick Nylon\nSupply materials, tools and manpower for laying one layer of thick agricultural nylon of 1mm thick) . The nylon should lay before casting the concrete covering , with all the required works to complete the Job.","M2",1000,null,{"$f":"E15*F15","v":0}]
[null,6,"Sulphate Resistant Plain Concrete\nSupply materials, tools and manpower to cast  Sulphate resistant plain concrete with compressive strength  21 MPa , (Slump 5\"), the work includes expansion joints every 20 m2 and according to the instructions of engineering committee,  and all the required works to complete the Job.as the following:"]
[null,"A","Minimum 10 cm thick Under mosaic tiles.","M2",880,null,{"$f":"E17*F17","v":0}]
[null,"B","Minimum 10 cm thick Under foundations   (Blinding) ","M2",390,null,{"$f":"E18*F18","v":0}]
[null,"C","Minimum 15 cm thick and 35cm width with using Sika  proof   for D.P.C  layer using heavy thiknees steel frame of 15 cm height","M.l",400,null,{"$f":"E19*F19","v":0}]
[null,"D","Minimum 15 cm thick and 15 cm width with using Sika  proof   for D.P.C  layer using heavy thiknees steel frame of 15 cm height","M.l",35,null,{"$f":"E20*F20","v":0}]
[null,7,"Reinforced Concrete \nSupply materials, tools and manpower to cast reinforced concrete with compressive strength 26 Mpa for all works  except the column and foundations with compressive strength 30 Mpa , the work includes shuttering( formwork), reinforcement and all accessories as per the attached  the drawings and technical specification, the price should include using high yield strength of (420N/mm2) deformed steel reinforcement (Ukraine, Turkish origin or equivalent which should be approved by the supervisory committee before starting supplying process and conform to the required specifications), coating the buried foundations and any part of column or tie beams using the tar class II or III and emphasis on water spraying (Curing) not less than 7 days, the use of Jute Cloth in the curing process  with all the required works to complete the Job, as following:"]
[null,"A","Foundations using sulphate resistant cement of 35  thick","M3",130,null,{"$f":"E22*F22","v":0}]
[null,"B","Roofs of 18 cm thick and parapets","M3",295,null,0]
[null,"C","Sun shades ","M3",18,null,0]
[null,"D","Drop beams (The prominent part of the ceiling is calculated)","M3",125,null,0]
[null,"E","lintel beam above the openings of doors and windows ","M3",7,null,0]
[null,"F","Columns","M3",10,null,0]
[null,"G","Expansion Joints","M3",3,null,0]
[null,"H","Steps, landings and flights (sulphate resistant cement is used for the part down D.P.C Layer) ","M3",12,null,0]
[null,"B-2: Building Works With Stone    "]
[null,8,"Build The Walls Under D.P.C Layer\nSupply materials, tools and manpower to build the walls under D.P.C layer using stones and cement-sand mortar (1:3) as per attached drawings, the work includes filling joints and spaces by sulphate resistant cement-sand mortar (1:3) , plastering the walls with cement –sand mortar (1:3) and spreading for both sides of the walls  with tar Class II or III with all the required works to complete the Job.","M3",240,null,{"$f":"E31*F31","v":0}]
[null,9,"Build The Walls Above D.P.C Layer\nSupply materials, tools and manpower to build the walls building of 35 cm thick above D.P.C layer with stones and cement-sand mortar (1:3), The walls height should be 3.25m height from top of D. P. C layer till the ceiling(included the thickness of the drop beams), with all the required works to complete the Job.","M3",560,null,{"$f":"E32*F32","v":0}]
[null,"B-3:  Backfilling With River Sand  Layers"]
[null,10,"Backfilling Works:\nSupply of materials, tools and manpower for filling in layers not exceeding 40cm thick for the one layer, including well compaction  using approved river sand up to D.P.C  layer level inside the building and where required within the areas inside the building with all necessary works, with required treatment. All needed work to complete the job will be included within the price.","M3",800,null,{"$f":"E34*F34","v":0}]
[null,"B-4: Tiling and False Ceiling Works"]
[null,11,"Terrazzo (Mosaic) Tles for The  Floors\nSupply materials, tools and manpower to finish the floors of the buildings, corridors, internal courtyard of classrooms for ground floor, the main entrance of the school and front passageways using Polished Mosaic Tiles of (40X40) cm dimensions best quality and cement sand mortar (1:3) , the tiles final faces should be flat and free from any ripples, the price includes steps of polishing and  glazing the mosaic tiles in site and not limited to fill the joints with white cement, cleaning the concrete floors well before finishing the floor by the tiles and taking into consideration the make of joints which not exceeding the width it of 1.5 cm for each 8 to 12 M.l and it is subsequently filled with Sikaflex construction AP with Back up rod for joints tiles . The contractor must submit samples to the Engineering Committee for the approval of one of the sample and which must be subjected to the full physical and chemical laboratory tests and according to Iraqi standard specifications, with all the required works complete the work.","M2",1345,null,{"$f":"E36*F36","v":0}]
[null,12,"Ceramic Tiles \nSupply materials, tools and manpower to finish the walls and floors of the sanitary units, kitchens, 1.2 m height skirting for the walls of the school administration building and its corridors, classrooms using ceramic tiles from a first-class and cement sand mortar (on two layer of plastering of cement mortar (1: 2) and (1:3)), the tiles final faces should be flat and free from any ripples, solution of water and bonding agent. The contractor must submit samples to the Engineering Committee for the approval of one of the sample and which must be subject to the laboratory tests and according to Iraqi standard specifications, installation of aluminum ceramic corner tile trim at the corners and edges of the walls, with all the materials needed to install, filling the joints with white cement and polishing, with all the required works to complete the work."]
[null,"A","Ceramic tiles for the walls of (30x60)cm dimensions  ","M2",900,null,{"$f":"E38*F38","v":0}]
[null,"B","Ceramic tiles non-slippery for the floors of (30x30) cm dimensions  ","M2",100,null,{"$f":"E39*F39","v":0}]
[null,13,"Marble sills for doors :                                \nSupplying materials, tools and manpower to fix marble sill for the doors . Marble sill should be 2 cm thickness and 40 cm Width  using cement mortar (1:3), the works includes removing the debris to a dump site approved by the relevant authority with all the required works to complete the job","M2",23,null,{"$f":"E40*F40","v":0}]
[null,14,"Granite Steps (Tread and Riser) for Internal Stairs :          \nSupplying materials and covering stair case (Tread and Riser)  with granite panels of 3 cm thickness from a first-class (approved sample) with cement sand mortar 1:2, the price should include finishing the landing stairs using same the granite panels, cement splash dash, with additives using a (1:2) solution of water and bonding agent, filling joints by white cement mortar, cutting, fittings, trims, curve edges, pointing with stock, polished & glazed mechanically on site after installation and cleaning, with all the required works to complete the work.","M2",55,null,{"$f":"E41*F41","v":0}]
[null,15," Roofing Using Concrete Tiles \nSupply materials, tools and manpower for roofing works according to the technical specifications, the work includes the following:\nA: Cleaning the roof well using air compressor and coating all the roof with two layers of liquid bitumen primer for waterproofing (flancoat).\n\nB: Spreading opposite layers of tar of (30/20) grade and laying between them a good quality of SBS modified bitumen waterproofing membrane (Saudi, Jordanian origin or equivalent which should be approved by the supervisory committee before starting supplying process) of 3mm thick, the tar layers and bitumen waterproofing membranes level must be raised 20 cm height around water baffles for the building and overlapping between the bitumen waterproofing membrane pieces not less than 15 cm for both directions.\n\nC:  Spreading high density and compressed corks layer of 5 cm thickness and laying one layer of thick agricultural nylon (polyphone sheets 1 mm).\n\nD: Spreading clean river sand layer with 8 cm thickness at the lowest area and increase the thickness according to the required slope.\n\nE: Finishing with concrete tiles of (80x80x4) cm thickness, taking into consideration the slope towards water drainage.\n\nF: Casting the edges by plain concrete of 21 Mpa compressive strength.\n\nG: Filling the joints with bitumen mastic with cautery \nwith all required works to complete the job.\n","M2",960,null,0]
[]
[null,16,"Perforated Gypsum Board False Ceiling Tiles  :\nSupply materials, tools and manpower to install perforated gypsum board ceiling tiles of 60x60 cm dimension and 10mm thickness for the school administration building , the work includes provision and installation of heavy thickness metal structure for false ceiling( L, T sections, hold down clips), galvanized steel rod 5mm (1.2x1.2m) for fixing it with the ceiling by screws \"butterfly\" type, and all installation and connection accessories with all works to complete the job.","M2",160,null,{"$f":"E44*F44","v":0}]
[null,17,"PVC False Ceiling Tiles  :\nSupply materials, tools and manpower to install PVC false ceiling tiles of 60x60 cm dimension and 10mm thickness for the sanitary unit and kitchens , the work includes provision and installation of heavy thickness metal structure for false ceiling( L, T sections, hold down clips), galvanized steel rod 5mm (1.2x1.2m) for fixing it with the ceiling by screws \"butterfly\" type, and all installation and connection accessories with all works to complete the job.","M2",150,null,{"$f":"E45*F45","v":0}]
[null,"B-5: Plastering, Exterior Cladding for The Building and Painting Works: Includeing all materials, scaffolds, workmanship, tools and anywhere else needed"]
[null,18,"Cement Plastering and Rendering\nSupply materials, tools and manpower to plaster the external walls and internal corridors of 20mm thick with  cement sand mortar (1:3) using aluminum straight edges, plastering in two coats over and rendering with white cement finishing coat, the work includes spreading one layer of cement splash dash, putting a layer of metal mesh on the area under the cement plastering which should be  installed at the linking area of the concrete beams and columns with the stone walls with decoration works in the plastering, and all the required works to complete the work.  ","M2",3000,null,{"$f":"E47*F47","v":0}]
[null,19,"Gypsum Plastering  \nSupply of materials, tools and manpower for gypsum plastering of the  two layers minimum 20mm of brown and white gypsum using aluminum straight edges for  the interior walls, ceilings (included ceiling of internal corridors), the price includes one layer of cement splash dash under Gypsum plastering with cement-sand mortar, putting a layer of metal mesh on the area under the  gypsum plastering which should be installed between the linking area of concrete beams and columns with the stone walls and all the required works to complete the work.","M2",2100,null,{"$f":"E48*F48","v":0}]
[null,20,"Plastic Painting for Internal Walls:                   \nSupply of materials, tools and manpower to paint the interior walls, ceilings and sunshades with 3 layers of plastic painting (Jotun, Betek, CAPAROL, Polisan, dyo) or equivalent which should be approved by the supervisory committee before starting supplying process. The job includes cleaning the walls and ceilings, removing the dirt and dust. All needed works to complete the job, shall be included within the price.","M2",2800,null,{"$f":"E49*F49","v":0}]
[null,21,"Cladding External Walls of The Building Facade  \nSupply materials, tools and manpower  for cladding the external walls for the facade of the school administration building with limestone panels  type (Mosul - Ba'adhira) and and  first-class granite tiles (approved sample) using mechanical method for the installation and using reinforcement steel layer (BRC) of (6 mm) diameter to install stone panels and granite tiles, price should include filling the spaces between the stone and the walls by using cement mortar (1:3) and the joints between stone with white cement and crushed stone powder (1:1), using solid copper wire for the installation of stone, installation of the stones panel on the walls and above the openings of doors and windows and sunshades  using steel angle section of 2 inch and 3 mm thick  and polishing stone very well taking into account the special safety requirements, and according to the technical specifications and attached drawings  as follows (The contractor should be complied with all forms and types of stone and all other details referred to in the attached drawings and designs),and all the required works to complete the work. As following:"]
[null,"A","Stones panels of 5cm thick","M2",90,null,{"$f":"E51*F51","v":0}]
[null,"B","Stones Frame of 20 cm height ( Coplan- كوبلن صدر طير)","M.l",10,null,0]
[null,"C","Stones Frame of 20 cm height and 5 cm thick( Coplan)","M.l",30,null,0]
[null,"D","Stones Frame of 15 cm height and 5 cm thick( Coplan)","M.l",160,null,0]
[null,"E","Whitewood limestone stone wall cladding of 5cm thick( حجر قرض طبيعي)","M2",26,null,0]
[null,"F","Granite tiles of 2 cm thick ","M2",30,null,0]
[null,"B-6: Doors,Windows, Handrail, Ladder and Sun Shed works"]
[null,22,"Teak (Saj) Wooden Doors:\nSupply and install  D1 teak (saj) wooden leaves door of 2.25x1 m dimensions with red cedar (jaw) frame of 2.35x1.1 m dimensions(from outside to abroad) and 6x3 inch dimension as per the attached drawings. Price of the work shall include the thickness of teak layer not less than 5 mm thick for each door face, installing geometric motifs on the exterior and interior faces for the door made of Jawi wood, Jawi wood frame around the door of 5 cm width and 1 cm thick, heavy duty door locks and handles from Italia, Turkish origin or equivalent which should be approved by the supervisory committee before starting supplying process, heavy duty Stainless Steel door hinges of 5 screws, painting  the door and frame with three layer of liquid teak paints, with all the required works to complete the work.  ","Ea.",6,null,{"$f":"E58*F58","v":0}]
[null,23,"Steel Doors:\nSupply and install double face steel door, the  partitions inside the door included every 20cm  by steel Square hollow section (4cmX4cmx2mm), and covered with steel plate 1.5 mm thickness on both sides with the use of geometric engravings on the steel plates designed by CNC machines using  steel plate 2 mm thick for the doors mentioned in attached drawings, , the frame shall be from steel C section of 3 inch and 3 mm thickness and steel angle section of 1 inch and 2 mm thickness ( double steel frame), the work  including all necessary fixings hinges, doors handles, locks with  key from Italian, Turkish origin or equivalent which should be approved by the supervisory committee before starting supplying process, hands locks and fixing a stopper on the floor or wall, glazing using stained glass of 4 mm thick , insulation foam, accessories, mastic, hardware and painting with anti-rust paint and 3 layers of oil paints type hammer finish, locks, connections accessories, as per attached drawings, and all the required works to complete the work. as following:"," "]
[null,"A","D2 Steel door of 2.75 x 2 m  dimensions (two leaves door)","Ea.",2]
[null,"B","D3 Steel door of 2.25 x 1.0 m dimensions  ","Ea.",22]
[null,"C","D4 Steel door of 2.1 x 0.9 m dimensions  ","Ea.",16]
[null,"D","D5 Steel door of 3.0 x 3.0 m  dimensions in entrance and corridors (two leaves door) ","Ea.",3]
[null,"E","D6 Steel door of 2.0 x 3.0m  dimensions which should be installed in the fence wall","Ea.",2]
[null,24,"Steel Sliding Door For School's Parking\nSupply and install steel sliding door D7 of 2 x 3.5 m dimension, the  partitions inside the door included  every 20cm  by Square hollow section (4cmX4cmx2mm), the frame door ( the moving part ) from Square hollow section of 3 inch and 3 mm thick, and covered with steel plate 1.5mm thickness on back side with the use of steel plates of 2 mm thick designed by CNC machines from the front side, the main frame shall be from steel C section of 4 inch and 3 mm thickness and steel angle section of 4 inch and 3 mm thickness ( double steel frame) and the door's rail of A channel of 3 inch and 4 mm thick and mild steel round bar of 12mm diameter which should be installed by reinforced concrete base , the work  including all necessary fixings hinges, doors handles, locks with  key from Italian, Turkish origin or equivalent which should be approved by the supervisory committee before starting supplying process and fixing a stopper on the floor or wall, insulation foam, accessories, mastic, hardware, and painting with anti-rust paint and 3 layers of oil paints type hammer finish, locks, connections accessories, as per attached drawings, with all the required works to complete the work.  ","Ea.",1,null,{"$f":"E65*F65","v":0}]
[null,25,"PVC Door:\nSupply and install PVC door with frame(D8)  of 2 x 0.9  m dimensions (the door color should be dark brown), It is installed in the walls by frame of steel C Section of 3 inch dimension, 3mm thick and painting with three layers of oil based paints in addition to anti rust primer.  The PVC sections and panel lambrins should be wide section and from Turkish origin or equivalent which should be approved by the supervisory committee before starting supplying process  as per the attached drawings with all accessories and installation of heavy duty locks, hinges and handles fromTurkish origin or equivalent, with all the required works and accessories to complete the Job. ","Ea.",5,null,{"$f":"E66*F66","v":0}]
[null,26,"PVC Window\nSupply and install PVC window with it is frame and installing it in the wall by steel frame made of steel C Section of 3 inch and 3 mm thick. Price of the work shall include use heavy and width PVC sections of Turkish origin or equivalent which should be approved by the supervisory committee before starting supplying process as per the drawings, installation of heavy duty locks and handles, installation of tinted glass of 6 mm thick, anti-insect netting mesh, steel guard frame (Steel Burglar frame) as per attached designs (The contractor should be complied with all details and design of steel guard frame referred to in the attached drawings) with painting the steel frame and guard frame with 3 layer of oil based paints “type hammer finish” in addition to anti rust prime coat, all the required works and accessories to complete the Job. The doors dimensions as followings:"]
[null,"A","W1 PVC window of 2.4 x 1.7 m dimension ","Ea.",49,null,{"$f":"E68*F68","v":0}]
[null,"B","W2 PVC window of 1.2x 1.7 m dimension ","Ea.",5,null,{"$f":"E69*F69","v":0}]
[null,"C","W3 PVC window of 1.2 x 0.5 m dimension ","Ea.",2,null,{"$f":"E70*F70","v":0}]
[null,"D","W4 PVC window of 05 x 0.5 m dimension ","Ea.",14,null,{"$f":"E71*F71","v":0}]
[null,27,"Roller Curtains\nSupply and install roller curtains (Zebra Curtains) of high thickness for windows of Turkish origin or equivalent which should be approved by the supervisory committee before starting supplying process. the roller curtain fabric should be available in a variety of solar screen, light filtering, and room darkening fabrics, dual shade systems require two fabric selections. Typically, one blackout and one solar screen, in addition to its clutch mechanism should be made in corrosion resistant plastic and internal mechanisms of Nylon 6 construction. The curtains dimensions as followings:"]
[null,"A"," Roller Curtains of 2.6 x 1.9 m dimension","Ea.",36,null,{"$f":"E73*F73","v":0}]
[null,"B"," Roller Curtains of 1.4 x 1.9 m dimension","Ea.",7,null,0]
[null,28,"Steel Burglar Bars for The Internal Corridors and 1 m Height For The Walls Openings of the First Floor\nSupply and install burglar bars for the internal corridors, openings and 1 m height for the walls openings of the first floor overlooking the inner courtyard of the classrooms according to the attached designs (The contractor should be complied with all details and design of steel guard bars referred to in the attached drawings). The price should include locks, handles, hinges, all cutting and welding works, all installation and connection accessories and painting with 3 layer of oil based paints “type hammer finish” in addition to anti-rust prime coat, all the required works and accessories to complete the Job.","M2",50,null,0]
[null,29,"Steel Handrail:\nSupply of materials, tools and manpower to install steel handrail (90cm) for staircases and openings, using steel tubes as per attached the drawing which should be installed in the places determined by the supervisory committee. The price includes painting the steel frames and guard frame with 3 layer of oil based paints “type hammer finish” in addition to anti rust prime coat. All needed work to complete the job will be included within the price. ","M.l",22,null,0]
[null,30,"Steel Ladder:\nSupply and install steel Ladder of 70 cm width using Steel hollow square section of 3 inch and 3 mm thick for main structure and 2 inch and 2 mm thick for steps .the work includes installation it from top and bottom well , all cutting and welding works and painting with anti-rust paint and three layers of oil based paints and all the required works to complete the work.","M.l",15,null,0]
[null,31,"Metal Sunshade Works\nSupply materials, tools and manpower to install metal sunshade roof of 3m height which should be installed in the and parking, between classrooms and sanitary units, according to attached drawings and details below : \n\nA- Steel square column of 3x3 inch and 4 mm thick and the distance from column and another should not be more than 3 m.\n\nB- Base plate of 25x25 cm dimension10 mm thick to install the sunshade steel structure with floors using rot bolts of 18 mm diameter with all required works \n\nC- Steel hollow square section for beams of roof structure of 3x3 inch dimensions and 4 mm thick.\n\nD- Steel hollow rectangular section for sub beam 1.5x3 inch and 3 mm thick.\n            \nE-  0.8mm thick corrugated plates for the roof, fixed by screws and overlapped in order to prevent water leakage.\n\nThe work includes all cutting and welding works, painting with anti-rust and three layers of oil paint for all steel structure with all the required works to complete the Job.","M2",110,null,0]
[null,32,"K- span Sun Shed works :\nSupply of materials, tools and manpower to install K- span sun shed which should be installed  in the main front entrance for the school, according to attached drawings and details below :\n\nA- Excavation for the columns footing (60x60x60cm).\nB- Providing and installing (4) anchor bolts of Ø16mm and length of (40cm) for each column.\nC- Providing and installing base plate of (200x200x10mm) for each column.\nD- Casting column footing (60x60x60cm) using (C21MPa) concrete and sulphate resistance cement for each columns.\nE- Providing and installing columns of Steel hollow square section of 100x100x3mm with height 3 m, the distance between columns shall not exceed 3 m\nF-Providing and installing steel drain trench using steel plate of 2 mm\nG-Providing and installing K- span sunshade, using plate of 0.8 mm thick,.\nH-Painting the steel structure with one layer of anti rust and three layers of oil paint. \nAll needed work to complete the job will be included within the price. ","M2",60,null,0]
[null,"B-7: Flag pole, Billboard, Room Title Board, Portable Fire Extinguishe and First Aid Box Works"]
[null,33,"Flag pole : \nSupply and install flag pole of 6 m height by using  2.5 inch and 2 mm thick round hollow section steel with steel base and flag made of high quality cloth and cord. The work shall include anti rust and three layers oil painting. All needed work to complete the job will be included within the price.","Ea.",1,null,{"$f":"E81*F81","v":0}]
[null,34,"Aluminum Composite letters \nSupply and install the schools name in the school facade  in the form of composite letters  that should be cut by CNC cutting machine by using aluminum panels with the panels thickness not less than 5 mm and its bases from PVC panels of 1 cm thick as per the colors determined by the engineering committee. The letters structure should be flat surfaces and free of metal impurities and should be installed on the wall using silicone adhesive glue and plastic fisher screw wall plug, with all the required works to complete the Job.","M2",8,null,{"$f":"E82*F82","v":0}]
[null,35,"Room Title Boards:\nSupply and install room title name made of thick plastic sheet of 15x35 cm dimensions, the price should include printing the required titles on it, using  plastic fisher screw wall plug to fix it in the walls. All needed work to complete the job will be included within the price.","Ea.",28,null,{"$f":"E83*F83","v":0}]
[null,36,"Portable Fire Extinguisher Powder \nSupply and install portable fire extinguisher powder of  12 Kg  capcity-(A.B.C) type which should be installed in the locations determined by supervisory committee. The installation shall be complete with brackets and it should be usable for at least three years from the date of receipt all in accordance with the Civil Defense specification, with training candidates from the end user on how to use them.","Ea.",8,null,{"$f":"E84*F84","v":0}]
[null,37,"Aluminum First Aid Box \nSupply and install aluminum first aid box of (0.8 x 0.8)m dimensions with 4 shelves with two leaves doors , Made locally using heavy thickness of 1.3 mm and width not less than 5.0 cm aluminum sections which should be installed in the locations determined by supervisory committee, and all the related accessories required to complete the Job\n","Ea.",1,null,{"$f":"E85*F85","v":0}]
[null,"B-8: Passageway and The External Corridors Works"]
[null,38,"Supply materials, tools and manpower to cast the new passageways around the buildings and the external corridors of 1.5 m width according to the follow items: "]
[null,"A","Spreading thick agricultural nylon layer- polyphone sheets of 1 mm thick before casting concrete ( under foundation and passageway floor)","M2",120,null,{"$f":"E88*F88","v":0}]
[null,"B","Casting Sulphate resistant plain concrete of 20 cm thickness and 40 cm width for passageway foundation with compressive strength 21 MPa, (Slump 5”) , all the required works to complete the Job","M3",27,null,0]
[null,"C","Build the passageway walls using stone and cement – sand (1:3) with height 80 cm and 30 cm width, the work includes smooth plastering the external and internal wall with cement-sand (1:3) and spreading the internal wall with tar Class II or III.","M3",78,null,0]
[null,"D","Spreading well compacted river sand  layer  with thickness not more than 40 cm for each layer under passageways floor.  river sand layers shall be watered, leveled and compacted well. With required treatment","M3",550,null,0]
[null,"E","Casting smooth  Sulphate resistant plain concrete for passageway floor with compressive strength 21 MPa, (Slump 5”) and 10 cm thickness, the work includes expansion joints every 20 m2  and it is subsequently filled with Sikaflex construction AP with Back up rod, and all the required works to complete the Job","M2",400,null,0]
[null,"F","Painting the stone walls from out side with three layers of plastic (silicon water proof) paint (Jotun, Betek, CAPAROL, Polisan, dyo) or equivalent which should be approved by the supervisory committee before starting supplying process.","M2",120,null,0]
[null,"B-9:  Parking and Play Yard  Works"]
[null,39,"Play Yard and Parking of the School\nSupply materials, tools and manpower to cast the school yard and parking, the work includes leveling the ground, compaction of existing ground (which should not be less than 90% of MDD to comply with the modified proctor test), filling in layers not exceeding 25cm, including compaction up to 95% of MDD to comply with the modified proctor test with sub base (type B)up to the required levels (the required levels of play yard and parking floors is 40 cm under the passageway concrete floor ) and according to the supervisory committee directions, the price should include spreading thick nylon layer of 1 mm thick and casting 21 Mpa compressive strength and 10 cm thick soleplate resistance  concrete with smooth surface using Helicopter for leveling the concrete surface, working expansion joints every 20 m2and subsequently filled with with bitumen mastic with cautery, casting the  foundation of retaining walls around yard  with concrete of 21 Mpa, in addition to build these walls of 25 cm width using stone and cement mortar (1:3),  and smooth plastering the walls using cement- sand mortar (1:3), and all the required works to complete the Job.","M2",1140,null,{"$f":"E95*F95","v":0}]
[null,"B-10: Fence Wall Works"]
[null,40," Laying one Layer of Thick Nylon\nSupply materials, tools and manpower to spread thick agricultural nylon layer  (polyphone sheets 1 mm thick) over the sub base  layer","M2",140,null,{"$f":"E97*F97","v":0}]
[null,41,"Sulphate Resistant Plain Concrete for Blinding\nSupply materials, tools and manpower to cast the Blinding of 10 cm thick and 21Mpa compressive strength, with all the required works to complete the Job. ","M2",150,null,0]
[null,42,"Reinforced Concrete for Foundation\nSupply materials, tools and manpower to cast 26 MPa sulphate resistance reinforced concrete of (30x50) cm the price should include, high yield (420N/mm2) deformed steel reinforcement  (Ukraine ,Turkish origin or equivalent which should be approved by the supervisory committee before starting supplying process and conform to the required specifications), timber formwork and shuttering. For more details, please see attached drawings.  ","M3",54,null,0]
[null,43,"Reinforced Concrete for The Columns\nSupply materials, tools and manpower to cast reinforced concrete for the columns of (30x40) cm dimensions, 2m height above the D.P.C and 26 MPA compressive strength every 6m distance, with installation of expansion joints each 12m (double columns), use of cork layers in the joints, with all the required works to complete the Job. Please see attached drawings","M3",24,null,0]
[null,44,"Build The Walls Under D.P.C Layer\nSupply materials, tools and manpower to build the walls under D.P.C level with stone and cement-sand mortar (1:3) the work includes smooth plastering the walls with cement –sand mortar (1:3), coating the buried foundations for both sides using the tar type II or III and backfilling the foundations sides with sub-base ''class C''. For more details, please see attached drawings. ","M3",40,null,0]
[null,45,"Sulphate Resistant plain Concrete for D.P.C  Layer\nSupply materials, tools and manpower to cast the D.P.C  layer of 10 cm thick, 20 cm thick and 21Mpa compressive strength, with all the required works to complete the Job. ","M.l",295,null,0]
[null,46,"Build The Walls Above D.P.C Layer\nSupply materials, tools and manpower to build the block wall fence using hollow concrete block of (40x20x20) cm and cement –sand mortar (1:3), 2m height above the D.P.C, with all the required works to complete the Job. For more details, please see attached drawings.","M3",117,null,0]
[null,47,"Plain Concrete for Cover Alonge The Wall\nSupply materials, tools and manpower to cast concrete cover of 10 cm thick, 40 cm width and 21 Mpa compressive strength along the block wall fence, with all the required works to complete the Job. For more details, please see attached drawings.","M3",15,null,0]
[null,48,"Reinforced Concrete for Columns Doors\nSupply materials, tools and manpower to cast reinforced concrete columns of (40x60) cm with foundation of 1x 1 m, 0.5m depth and 24Mpa compressive strength for the doors.  ","M3",3,null,0]
[null,49,"Smooth Cement Plastering for The Front Fence Wall\nSupply  materials, tools and manpower for cement plastering with 20mm thickness smooth-finished for the front fence wall, its columns and concrete cover above the fence walls using aluminum straight edges. The price includes three layers as follows: one layer of cement splash dash, one layer of rough (kafmal) and finally smooth finished cement plastering with cement-sand mortar(1:3), putting a layer of metal mesh on the area under the cement plastering which should be  installed  at the linking area of the concrete columns with the block walls and all the required works to complete the work.","M2",140,null,0]
[null,50,"Plastic Painting for The Front Fence Wall:                                         Supply of materials, tools and manpower to paint the front fence wall and concrete cover above the fence walls with three layers of plastic (silicon water proof) paint (Jotun- Jotashield, Betek, CAPAROL, Polisan, dyo) origin or equivalent which should be approved by the supervisory committee before starting supplying process.  The job includes cleaning the walls, removing the dirt and dust. All needed works to complete the job, shall be included within the price.","M2",140,null,0]
[null,51,"Wrought Iron Wall Railings for The Front Fence Wall:            Supply and install steel wrought iron wall railing of 80 cm high for the front fence only that consist of steel square section for external frame for railing of 2 inch and 3 mm thick, steel square section frame around the steel plates sheets of 3/4 inch and 2 mm thick and steel plate sheet of 3 mm thick with the use of geometric engravings on the steel plates designed by CNC machines as per attached drawings, the work includes installing it between two concrete columns using steel base plate of 10 mm thick which should be installed in the concrete columns using rawl bolts, painting iron wall railings  and base plate with 3 layers of oil based paints type hammer finish in addition to anti-rust primer and all the required works to complete the Job","M2",50,null,0]
[null,52,"Cladding The Concrete Columns for The Front Fence Wall:  \nSupply materials, tools and manpower for cladding the concrete columns for the front fence wall only with limestone panels  type (Mosul - Ba'adhira) , price should include filling the spaces between the stone and the walls by using cement mortar (1:3) and the joints between stone with white cement and crushed stone powder (1:1), using solid copper wire for the installation of stone, polishing stone very well taking into account the special safety requirements, and according to the technical specifications and attached drawings  as follows (The contractor should be complied with all forms and types of stone and all other details referred to in the attached drawings and designs) ,and all the required works to complete the works. As the following:"]
[null,"A","Stones panels of 5cm thick","M2",15,null,{"$f":"E110*F110","v":0}]
[null,"B","Stones Frame of 20 cm height ( Coplan- كوبلن صدر طير)","M.l",20,null,0]
[null,"C","Stones Frame of 20 cm height and 5 cm thick( Coplan)","M.l",20,null,0]
[null,"D","Stones Frame of 15 cm height and 5 cm thick( Coplan)","M.l",100,null,0]
[null,"E","Granite tiles of 2 cm thick and 30 cm height","M2",24,null,0]
[null,53,"Cement Plastering and Rendering for Rest of Fence Walls\nPlastering the block wall fence from both sides using 20mm thick with  cement sand mortar (1:3) using aluminum straight edges, plastering in two coats over and rendering with white cement finishing coat, the work includes spreading one layer of cement splash dash, putting a layer of metal mesh on the area under the cement plastering which should be  installed at the linking area of the concrete  columns with the block walls with decoration works in the plastering and according to the attached drawings and all the required works to complete the work.  ","M2",1450,null,0]
[null,"C: Sanitary Works"]
[null,null," Notes:\nThe items prices below included the following: \n\n1-  The works should be included the provision, installation, connection, operation and inspection of all the materials in their locations according instructions of the engineering committee, then testing the networks sanitary works, with all requirements to complete the job.\n\n2-   The work shall be according to the technical specifications and the materials shall be of high quality after submitting samples (at least 3 ) for all materials of pipes and fittings to engineering committee.\n\n3- All materials should be subjected to laboratory tests and may not use any material not tested.\n\n4-  When the PVC sewage pipes networks are established for a sanitary unit, they should be examined under appropriate pressure as per technical specifications.\n\n5- The price includes dumping of all debris to a site approved by local authorities.\n\n6-  The work includes all the requirements and accessories of the pipes feeder and fitting, connecting the building networks (pure water and sewage) with the source of water and drainage network. Sanitary works include the following:\n"]
[]
[null,54,"Septic Tank\nSupply materials, tolls and manpower to build the septic tanks as per attached drawings, price should include soil excavations as per the required dimensions, casting the foundation of walls with 21 Mpa plain concrete , 20 cm thick and 50 cm width using soleplate resistant cement, build  the walls of 40 cm width with sold stone and cement mortar (1:3), casting  reinforced concrete with compressive strength 26 Mpa for 20 cm thick roof with two layers reinforcement of 12mmØ spaced @20cm both directions and installation of manhole two  hard plastic manhole cover of (60 x 60 ) cm with all the required works to complete the Jobb. The septic tanks dimensions as followings:"]
[null,"A","Septic tank of  4x3x3.5 m dimensions","Ea.",1,null,{"$f":"E120*F120","v":0}]
[null,"B","Septic tank of 7.0 x 2.60 x 3.5m dimensions","Ea.",1,null,{"$f":"E121*F121","v":0}]
[null,55,"Building The Washing Basins in sanitary unit of Pupils\nSupply materials, tools and man power to build the washing basins of (L:3 x H: 0.75 x T: 0.3) m dimensions inside the sanitary unit using stone and cement – sand mortar (1:3), the work includes covering all the walls and base with ceramic tiles and cement – sand mortar (1:3), all required construction works, water and sewage networks. All needed work to complete the job will be included within the price.\n","Ea.",3,null,{"$f":"E122*F122","v":0}]
[null,56,"Installation and Connection of PVC pipes:\n Supply, install, connect, testing and commissioning PVC pipes of SN8 drainage 6 bar from Egyptian origin or equivalent which should be approved by the supervisory committee before starting supplying process , starting from fixtures down to manholes and septic tank, The work includes excavation (40x60cm), backfill, covering the pipes at the joints with concrete 10 cm from all sides using sulphate resistant cement with all installations and connections accessories and fittings, Elbows, Tees, PVC p trap, gully trap .. etc.), with all the required works to complete the Job. As following:"]
[null,"A","PVC Pipe of 6 inch diameter.","M.l",60,null,{"$f":"E124*F124","v":0}]
[null,"B","PVC Pipe of 4 inch diameter.","M.l",140,null,{"$f":"E125*F125","v":0}]
[null,"C","PVC Pipe of 3 inch diameter.","M.l",20,null,{"$f":"E126*F126","v":0}]
[null,57,"Cast Iron Ventilation Pipe for Septic Tank\nSupply materials, tools and manpower to install new cast iron ventilation pipe of 3-inch diameter for Septic tank, the works includes all required civil works, and all works to complete the job.\n","M.l",8,null,{"$f":"E127*F127","v":0}]
[null,58,"Concrete Manholes:\nSupply materials, tools and manpower to construct a fair faced concrete manholes using steel frame as below dimensions with plain concrete of 21 Mpa compressive strength and 10 cm thick for all works (Floor and walls) using sulphate resistant cement, the work includes soil excavations to any required depth, spreading two layer of sub-base layer “Class B”  shall be applied in layers of 25 cm thick, watered, leveled and well compacted, with manhole hard plastic manhole covers, with all requirements to complete the job. As per below dimensions:"]
[null,"A","Manholes of 60 x 60 cm","Ea.",7,null,{"$f":"E129*F129","v":0}]
[null,"B","Manholes of 40 x 40 cm","Ea.",24,null,0]
[null,"C","Manholes of 30 x 30 cm which could be constructed in the internal courtyard of the classrooms (in the ground floor) to discharge the water.","Ea.",4,null,0]
[null,59,"Floor Drain:\nSupply and install 4” PVC floor gully trap of 100mm diameter. Price to includes (15x15) double chrome plated cover, all required pipes and fitting to connect it with the main sewage pipes, excavation, concreting around pipes and gullies, which should be distributed according to the directives of the Engineering Committee and the attached drawings. All needed work to complete the job will be included within the price.","Ea.",13,null,0]
[null,60,"Roof Drain pipes:\nSupply, installation, testing and commissioning 4\" PVC pipe of 10 bar of Egyptian origin or equivalent which should be approved by the supervisory committee before starting supplying process, properly fixed with brackets to the wall and the slab, complete with all fittings and accessories for draining rain water from the roof, internal corridors and courtyard of the classrooms in the first floor. With all required hanging accessories, fittings and vent caps and all the required works to complete the Job.  ","M.l",100,null,0]
[null,61,"Eastern style toilet:\nSupply and Install ceramic eastern toilet of Turkish origin or equivalent which should be approved by the supervisory committee before starting supplying process and (50 x 60) cm dimension, White, complete with flush tank \" kahramana type\", fitting, stop, valve side tap, connecting it with networks of sewage and  potable water , installing and connecting gully trap of 100mm diameter, and all the required works to complete the Job.","Ea.",18,null,0]
[null,62,"Western style toilet:\nSupply, install, connect and test western ceramic toilet of Turkish origin or equivalent which should be approved by the supervisory committee before starting supplying process, price should include fitting, stop, valve side tap and with water toilet mixer (hot & cool) with handheld showers, connecting it with networks of sewage and  potable water, with toilet brush and holder and all the required works to complete the Job.","Ea.",2,null,0]
[null,63,"Ceramic wash basin:\nSupply, install, connect and test white ceramic wash basin with stand of western, Turkish origin or equivalent which should be approved by the supervisory committee before starting supplying process, size (60 X 50) cm complete with all fittings, valves, gully-trap, connecting it with networks of sewage and  potable water, the price also includes the water mixer- first class with all connections and installations accessories and any other necessary parts with all the required works to complete the Job.","Ea.",6,null,0]
[null,64,"Water tank:\nSupply and install galvanized steel gage 16 water tank of 1000 Lit. capacity. Price to include concrete stands, float, valves, fittings, vents, check valves, connecting the tanks with the water distribution network of building and main water, and all necessary works to complete job.","Ea.",8,null,0]
[null,65,"PPR pipes:\nSupply materials, tools and manpower to install, connect and test (PPR) pipes of Yugoslav, Serb origin or equivalent which should be approved by the supervisory committee before starting supplying process for the distribution water network (cold and hot water pipes)with isolate all hot water pipes by using arm flex and thermal tape and concreting 10cm around the pipes and the pipes from and to the water heater and the pipe which connecting the water network of the building and the source of main water network , price should include all connection and installations accessories and fitting as 90 elbow, tee and valve...etc., the work include connecting the project portable water network with water main source of the region which the school is located, installing the pipe in walls, roofs and floor, testing the water pipes network for the building as per technical specifications with all the required works to complete the Job. As shown below:"]
[null,"A","PPR pipes of 1 inch diameter","M.l",200,null,{"$f":"E139*F139","v":0}]
[null,"B","PPR pipes of 3/4 inch diameter","M.l",400,null,{"$f":"E140*F140","v":0}]
[null,66,"Galvanized iron water pipes\nSupply, install and test galvanized water pipes \"class A\" SCH40 of 1 inch diameter to connect and transfer water from and to water tanks which should be installed on the building roof. The price includes all fittings and accessories such as 90 elbow, tee and valve...etc., the work include installing the pipe in walls, roofs and floors, excavation, backfilling, painting the pipes using 3 layers of anti-rust then isolate all hot water pipes by using arm flex and thermal tape and Teflon seal for connections of cold and hot water pipes and concreting 10cm around the pipes, all needed work to complete the job will be included within the price.  \n","M.l",100,null,{"$f":"E141*F141","v":0}]
[null,67,"Taps: \nSupply and connect chrome water taps 1/2\". Price of the work shall include all water connections, all pipes and fitting to connecting it with water distribution network and the taps locations should be determined by the engineering committee inside and outside the building. All needed work to complete the job will be included within the price. \n","Ea.",40,null,{"$f":"E142*F142","v":0}]
[null,68,"Stainless Steel Double Bowl Sink:\nSupply of materials, tools and manpower to install and commission of stainless steel double bowl sink (150x60cm). Complete with: chrome mixer for sinks, waste outlet, tail piece, P-trap chrome, chrome plated 14mm and all required parts, gully –trap, fittings, valves, in addition to aluminum sink cabinet storage (Aluminum Countertop) which consist of aluminum frame, heavy section of 1.2 mm and width not less than 5.0 cm aluminum sections and aluminum panel lambri of Turkish origin or equivalent which should be approved by the supervisory committee before starting supplying process, each aluminum countertop piece containing 3 doors with aluminum shelves inside. The work includes, connecting it with networks of sewage and potable water, all needed work to complete the job will be included within the price.","Ea.",2,null,{"$f":"E143*F143","v":0}]
[null,"C: Electrical Works"]
[null," ","Notes\nThe items prices below included the following: \n1- The works should be included the provision, installation, connection, operation and inspection of all the materials in their locations according instructions of the engineering committee, then testing the electrical network of the building, with all requirements to complete the job.\n\n2- The work shall be according to the technical specifications and the materials shall be first class and original not commercial or imitative. The required brand for electrical cables, wires, electrical PVC conduits to pull the wires, fittings, galvanized steel electrical boxes for sockets and electrical switch of Gulf, Jordanian origin or equivalent which should be approved by the supervisory committee before starting supplying process. Lighting fixtures (ceiling or walls), bulbs, electrical lamp holders, LED projects and flood lights, celling fans, electrical sockets, metal distribution board box and switches of English, French origin or equivalent. Main and sub distribution boards, MCCB and MCB circuit backers and MCB Distribution Boards with all their accessories of ABB, Schneider, Siemens or equivalent.\n\n3- The electrical PVC conduits which will use to pull the wires of lighting fixtures and electrical sockets and switches..etc. should be installed inside the concrete roofs not on their outer surface.\n\n4-  The contractor shall submit samples of all materials before providing to be approved or rejected them by engineering committee.\n5- All electrical works should be subjected technical specifications(please see attached)"]
[]
[null,69,"Plug Switch of 13 Amp Capacity \nSupply, connect and operate electrical point with electrical Plug switch of 13 Amp capacity using single copper wires of (3x2.5) mm2, the work includes supplying and installing galvanized steel electrical box, pulling wires inside PVC conduits  and connecting it to MCB distribution board with all installation and connection accessories, and all the required works to complete the Job .","Ea.",60,null,{"$f":"E147*F147","v":0}]
[null,70,"Plug Switch of 15 Amp Capacity \nSupply, connect and operate electrical point with electrical Plug switch of 15 Amp capacity using single copper wires of (3x2.5) mm2, the work includes supplying and installing galvanized steel electrical box, pulling wires inside PVC conduits and connecting it to MCB distribution board with all installation and connection accessories, and all the required works to complete the Job.","Ea.",24,null,{"$f":"E148*F148","v":0}]
[null,71," Socket of 45 Amp Capacity \n Supply, connect and operate electrical point with electrical socket of 45 Amp capacity for air conditioning devices and water heaters using single copper wires of (3x4) mm2, the work includes supplying and installing galvanized steel electrical box, pulling wires inside PVC conduits and connecting it to MCB distribution board with all installation and connection accessories, and all the required works to complete the Job. ","Ea.",20,null,{"$f":"E149*F149","v":0}]
[null,72,"Electric bell\nSupply, install, connect, test and commission electric bell 220VAC/5 W , Metallic, Wall Mounting and the sound level to be  ISO 9001:2000 , for voltage 230VAC to be 68 dB to 108 dB sound level at 2 ft. & 2900 Hz operating frequency with electrical switches of 10 Amp capacity, using single copper wires of (3x2.5) mm2 , the work includes supplying and installing galvanized steel electrical box, pulling wires inside PVC conduits and connecting it to MCB distribution board with all installation and connection accessories, and all the required works to complete the Job.    \n","Ea.",2,null,{"$f":"E150*F150","v":0}]
[null,73,"Ceiling Fan and Exhaust Fan\nSupply, connect and operate electrical installations  with wiring using single copper wires of (2x1.5) mm2, the work includes supplying and installing galvanized steel electrical box, pulling wires inside PVC conduits and connecting it to MCB distribution board with all installation and connection accessories, and all the required works to complete the Job. "]
[null,"A","Ceiling fan of 56 inch with Fan Speed Control Switch","Ea.",38,null,{"$f":"E152*F152","v":0}]
[null,"B","Exhaust fan of 8 inch diameter with electrical switch of 10 Amp capacity","Ea.",14,null,{"$f":"E153*F153","v":0}]
[null,"C","Exhaust fan of 12 inch diameter with electrical switch of 10 Amp capacity","Ea.",6,null,{"$f":"E154*F154","v":0}]
[null,74," Lighting Fixtures\nSupply, install, connect, test and operate lighting fixtures with electrical switches of 10 Amp capacity, using single copper wires of (2x1.5) mm2 , the work includes supplying and installing galvanized steel electrical box, pulling wires inside PVC conduits and connecting it to MCB distribution board with all installation and connection accessories, and all the required works to complete the Job. The lighting fixtures are as following:  "]
[null,"A","LED Ceiling Light (LED Surface Lights) of 36 Watt","Ea.",48,null,{"$f":"E156*F156","v":0}]
[null,"B","LED bulb lights ( Economic Bulb) of 40 Watt with electrical holder","Ea.",115,null,0]
[null,"D","Modern waterproof outdoor wall lighting fixtures (Lantern) with Led bulb lights ( Economic Bulb) of 20 watt  ","Ea.",28,null,0]
[null,"E","Big modern outdoor wall lighting fixtures (Lantern) with Led bulb lights ( Economic Bulb) of 40 watt which should be installed on the  columns of front fence wall with all installations and connections accessories","Ea.",10,null,0]
[null,"F","Waterproof LED Ceiling Light for sanitary unit and external ceiling of the building interface","Ea.",20,null,0]
[null,"G"," Outdoor LED  flood light (Waterproof) of 200 Watt,  It should be installed  in the rooftop of the building .","Ea.",6,null,0]
[null,75,"Cables\nSupply, Install, test and commission cables, the price should include supplying, installing, testing, commissioning materials, workmanship, equipment, machinery, trenching, all installation and connection accessories, the work includes pulling the cables that will come out from distribution boards to out side the buildings  underground with  excavation of trench  cables path  not less than 70 cm depth, spreading 30 cm river sand bedding around the cables, spreading the rest of trench depth with sub-base layers \" Class B\"with well compaction in layers so that the thickness of each layer does not exceed 20 cm, putting Underground Warning Tape along cables path, pulling the cables  inside the PVC pipe of 10 bar in areas that intersect with the cars crossing areas and covering the pipe with 0.3 m plain concrete cover and pulling the cables that must feed the distribution boards for first floor inside the PVC pipes which should be installed in the walls well. The cables must be one length from the electric feeding sources to the electrical distribution boards, ie, it is not permissible to make joints when laying the cables,  with all the required works to complete the Job.This items includes the cables shown below"]
[null,"A","Armored cable of (4x50) mm²+(1x16) mm² to feed the main distribution board in the building from the electrical distribution board of the  transformer ","M.l",50,null,{"$f":"E163*F163","v":0}]
[null,"B","Unarmored  cable of (4x25) mm²+(1x10) mm² to feed the MCB Distribution Board In the administration building from the main distribution board which located inside building","M.l",20,null,0]
[null,"C","Unarmed cable of (4x16) mm²+(1x10) mm²  to feed the MCB Distribution Boards in the ground and first floors of classrooms building from the main distribution board which located inside building.","M.l",150,null,0]
[null,"D","Armored cable of (4x10) mm2 +(1x10) mm² to feed the MCB Distribution Boards In the Sanitary unit building and in the determined areas  by the Engineering Committee from\nthe main distribution board which located inside building","M.l",100,null,0]
[null,76,"Manhole \nSupply materials, tools and manpower to build manhole of (40x40)cm dimension using bricks and cement mortar (1:3) the work includes  plastering using cement- sand mortar (1:3) and installation of hard plastic cover of 40x40 cm with all the required works to complete the Job.","Ea.",10,null,0]
[null,77,"18 Ways MCB Distribution Boards\n Supply, install, connect, test and commission of 18 ways, TP + N bus bar type distribution board Combination bus bar and Din Rail, 2 rows, 18 ways, contain of earth leakage circuit breakers for water heaters, with single door complete with accessories and separate neutral strip to accommodate incoming miniature circuit breaker (MCB) triple pole and 100 Amp capacity with bus bar of 150 Amp and outgoing SP MCBs, with all installations and connections accessories, labels and indicator lamps and all the required works to complete the Job.","Ea.",3,null,0]
[null,78,"12 Ways MCB Distribution Boards\n Supply, install, connect, test and commission of 12 ways, TP + N bus bar type distribution board Combination bus bar and Din Rail, 12 ways for the Sanitary unit building, contain of earth leakage circuit breakers for water heaters, with single door complete with accessories and separate neutral strip to accommodate incoming miniature circuit breaker (MCB) triple pole and 80 Amp capacity with bus bar of 80 Amp and outgoing SP MCBs, with all installations and connections accessories and all the required works to complete the Job.","Ea.",1,null,0]
[null,79,"Main Distribution Board (MDB)\nSupply, install, connect, test and commission prefabricated metal Main distribution board (MDB) of 80 cm x 120 cmx 35cm dimensions and one-door with metal stand, the work includes installing and connecting the digital screens for Ammeter, voltage and frequency meters with labels and all internal and external connection and installations accessories (connections, cables, fuses, phase, neutral and earthing bars, Isolators...etc.), and all the required works to complete the Job, which consist of:\nA-1 Main circuit breaker of three phase and 250 Amp , 380 Vol ;\nB- 1 MCCB 3PH 380 Vol, 100 Amp;\nC-2 MCCB 3PH 380 Vol,80Amp;\nD-1 MCCB 3PH 380 Vol, 60 Amp;\nE- 2 MCCB 3PH 380 Vol, 30 Amp (spare parts);\nF- Set bus bar 3 PH 380 Vol, 250 Amp and sub-busbar strips with different capacities according to the circuit breakers capacities in the MDB;\nG-1 Three pole, LED Digital Voltage, frequency and Amperage meter with CT;\nH-3 Indicator lamp 220VAC for each phase;\nI- 2 Timer \nJ- 1 Phase failure ","Ea.",1,null,0]
[null,80,"Three Phase Electric Meter\nSupply, install, connect, test and commission three phase electric meter of German origin or equivalent which should be approved by the supervisory committee before starting supplying process  and subjected to the specifications of the Iraqi Ministry of Electricity, the price should include, installing it inside a waterproof metal board of suitable size for the size of the meter and in the place determined by the supervisory committee, all required cables, wires, fittings, terminal, all installation and connection accessories according to the supervisory committee directions, and all the required works to complete the work.","Ea.",1,null,0]
[null,"D: Mechanical Works"]
[null,81,"Air-Conditioning Split Unit of 2 Ton capacity \nSupply, install, connect and test air-conditioning split units of 2 Ton capacity, heating and cooling, the compressor type T3 inverter compressor, gas type \"Freon gas R410A\" and wall type, the work includes, supplying, installing and connecting drain pipes inside the walls using PPR pipe of 3/4 inch with all required fittings to the nearest drain point, all required sleeve pipes from PVC pipe of 3 Inch diameter with all required fittings for the air-conditioning split units of the first floor which should be installed in the walls and during cast the slab to connect the all the refrigerant piping to the condensing unit from indoor unit to outdoor unit which should be installed on the first floor roof. The price should include, all the refrigerant piping to the condensing unit (from indoor unit to outdoor unit), all wiring, electrical controls, a steel base stand and sunshade for the outdoor unit, protection devices and all installation and connection accessories required, the required brand is Tosot or York or equivalent which should be approved by the supervisory committee before starting supplying process.  For more details, see attached the Compliance sheet.","Ea.",18,null,{"$f":"E173*F173","v":0}]
[null,82,"Electrical Water Heater 160 Liter capacity\nSupply, install, connect, and commission electrical heater 160 Liter capacity. The price includes supplying, installing, connecting, laying and commissioning drilling, cutting, all pipes, fitting, valves, check valves, relief valves and steel base and connect it with the electrical source using cable (3x4) mm2, with all the required works to complete the Job.","Ea.",2,null,{"$f":"E174*F174","v":0}]
[null,83,"Water Pump:\nSupply, install and  connect water pump with motor(1.1 kW, 220 V, 50 Hz ), Q=3 m3/Hr@ H=15 m , of Italian, German origin or equivalent which should be approved by the supervisory committee before starting supplying process,   check valve and strainer for connecting the pump suction pipe to the main water source pipe and connecting the discharge of the pump with pipe going up to the tanks  also the pump should have pressure switch on the pump and electrical float switch ball type in the tank the price  include extending cable (2X1.5 mm²) from motor control switch to float switch for shut down the pump when the tank is filled . The work includes all connection and installation accessories, the electrical connection using 1.0 kV grade PVC insulated copper cable 3x2.5 mm², supplying and installing steel box to protect the pump of theft and weather conditions made of steel angle section of 1.5 inch and 2 mm thick and steel plate of 1.5 mm thick for box slab with all required works and painting, and all accessories to complete work as required. For more details please see compliance sheet.","Ea.",2,null,{"$f":"E175*F175","v":0}]
[null,84,"Stainless Steel Water Cooler \nSupply, install, connect, operate and test a stainless steel water cooler of 90 Lit cooling capacity of Al Sabeel , DANA or equivalent which should be approved by the supervisory committee before starting supplying process , 4 taps (push open type) with all accessories of pipes, fittings, sewage pipes to discharge excess water and opening of discharge, the work includes connection it with water source and connect it with the electrical source using cable (3x2.5) mm2 with the protection device, with all connection and installation accessories, and all the required works to complete the Job .For more details please see compliance sheet.","Ea.",4,null,{"$f":"E176*F176","v":0}]
[null,85," RO Filter\nSupply and install water filter (7 stages) of Taiwanese, Korean, American origin or equivalent which should be approved by the supervisory committee before starting supplying process, the price includes connecting filters with water coolers with all requirements. For more details please see compliance sheet.","Ea.",4,null,{"$f":"E177*F177","v":0}]
[null,"E:  Systems of  TV, CCTV and Earthing"]
[null,86,"TV System\nSupply, Install, test and commission TV system, the required brand is English, French, Japanese or equivalent which should be approved by the supervisory committee before starting supplying process, as specified according to technical specification:  "]
[null,"A","Satellite Socket   \nSupply, install, connect, test and operate single satellite socket wall plate which should be installed on the 50 cm height from ground level of the building using high quality RG6 coaxial cable. The work includes all cables (from socket to the dish), laying the cables, supplying and installing galvanized steel box (J- box), pulling wires inside PVC conduits in the walls with all installation and connection accessories, and all the required works to complete the Job.  ","Ea.",4,null,{"$f":"E180*F180","v":0}]
[null,"B","Receiver Dish Satellite \nSupply, install, connect and test high quality receiver dish satellite of 2 m diameter with quad LNB of four outputs ASWAR Type, dish steel stand and all its accessories, and all the required works to complete the Job","Ea.",1,null,{"$f":"E181*F181","v":0}]
[null,87,"CCTV System Points\nSupply materials, tools and manpower to install CCTV system points which will be distributed on site during implementation to cover the project areas which determined by the supervisory committee and the end user, the work include supplying, installing and connecting thick waterproof PVC square junction box for CCTV cameras of IP65 and12 x12 cm dimensions , RG59 coaxial CCTV cable with VDE power cable which should pull in PVC conduits from determined camera point to the metal board inside the manager room or any room determined by the supervisory committee ( this PVC conduits should be installed inside the slab or walls during implementation works) and metal board of 50 x 50 cm, single airtight door with lock which should be installed inside the wall to be assembled all cables inside it, the cables must be one length from the camera box to the metal board, i.e., it is not permissible to make joints when laying the cables. The price should include, marking or number each cable with its camera box, all installation and connection accessories, all required fittings. All needed work to complete the job will be included within the price. ","Ea.",24,null,{"$f":"E182*F182","v":0}]
[null,88,"Earthing system:\nSupply, install and connect earthing system for the building  and MCB Distribution Boards, consists of three copper rods( each length 1.5 m, 16 mm dia), connected together by copper wire of (1 x95) m² to form triangle shape ( on the surface/ground with each side length of 3 m from each other  and copper wire buried at 2 m deep). work include the excavation of three earthing pit ( depth of 2m each) .The price includes supplying, installing, connecting, laying and commissioning drilling, cutting, digging/excavating and backfilling with mixture of layers (sand, salt and charcoal) and all the required works to complete the Job.  ","Ea.",1,null,{"$f":"E183*F183","v":0}]
[null,"F: Supplying The School with an Electrical Current"]
[null,89,"Electrical Transformer of 250 kVA capacity\nSupply, install, connect, test and commission new electrical transformer of 11/0.416 kV and 250 kVA capacity, Turkish , KSA origin or equivalent which should be approved by the supervisory committee before starting supplying process, compatible with the Ministry of Electricity specifications- transformer technical specification IEC-60076 with all electrical connection and installation accessories. certificate of origin and inspection documents are required. See the Transformer specifications in Annex A (D-26) and compliance sheet.","Ea.",1,null,{"$f":"E185*F185","v":0}]
[null,90,"Electrical Distribution Board\nSupply, install, connect, test and commission low voltage electrical distribution board of 400V capacity consist of metal box, circuit breaker of 3 phases and  250 Amp capacity, busbars, voltage/amperage meters, clands and all accessories, prefernd brand is ABB, Schneider, Siemens or equivalent which should be approved by the supervisory committee before starting supplying process, the  metal box must be suitable to be fixed on tubular pole, waterproofing. The electrical distribution board and its accessories should be suitabled to operate under heavy load  and short circuit system. See the  electrical distribution board specifications in attached Annex A (D-09 .","Ea.",1,null,0]
[null,91,"Galvanized Tubular Steel Pole of 11m height\nSupply and install galvanized tubular steel pole of 11m heighand Turkish origin or equivalent which should be approved by the supervisory committee before starting supplying process, the work includes excavation in any soil type for the pole hole according to the required depth, spreading two layer of sub-base layer “Class B”  shall be applied in layers of 25 cm thick, watered, leveled and well compacted, casting the concrete base of the pole of 60 x 60 x 210 cm dimensions outside the excavated hole with plain concrete of 21 Mpa compressive strength using steel mold and sulphate resistant cement, coating the concrete base from all sides with two layers of liquid bitumen primer for waterproofing (flancote), filling the sides of the excavation using compacted sub-base layers class B with well compaction to all surrounding area of the pole, supplying and connecting copper wire 50 mm² and 1.5 length for earthing system with all required accessories, removing the debris to a dump site approved by the relevant authority, with all connection and installation accessories and all the required works to complete the work. See the pole specifications in attached Annex A (D-22) ","Ea.",2,null,0]
[null,92,"Galvanized  Lattice Steel Pole of 11m height\nSupply and install galvanized lattice steel pole of 11m height and Turkish origin or equivalent which should be approved by the supervisory committee before starting supplying process, the work includes excavation in any soil type for  the pole hole according to the required depth, spreading two layer of sub-base layer “Class B”  shall be applied in layers of 25 cm thick, watered, leveled and well compacted, casting the concrete base of the pole of 60 x 80 x 210 cm dimensions outside the excavated hole with plain concrete of 21 Mpa compressive strength using steel mold and sulphate resistant cement, coating the concrete base from all sides with two layers of liquid bitumen primer for waterproofing (flancote), filling the sides of the excavation using compacted sub-base layers class B with well compaction to all surrounding area of the pole, supplying and connecting copper wire 50 mm² and 1.5 length for earthing system with all required accessories and stay wire with all its accessories and concrete base according to the approved specifications, removing the debris to a dump site approved by the relevant authority, with all connection and installation accessories and all the required works to complete the work. Please see the pole specifications in Annex A (D-46).","Ea.",1,null,0]
[null,93,"Standard Galvanized Channel of 120 cm Length and 4 inch Size\nSupply and install galvanized C channel of 120 cm length, 4 inch size and 5 mm thick with clamps and screws according to the specifications of the Ministry of Electricity, the channel must have suitable holes, with all connection and installation accessories and all the required works to complete the work. ","Ea.",4,null,0]
[null,94,"Standard Galvanized Channel of 140 cm Length and 4 inch Size\nSupply and install galvanized C channel of 140 cm length, 4 inch size and 5 mm thick with clamps and screws according to the specifications of the Ministry of Electricity, the channel must have suitable holes, with all connection and installation accessories and all the required works to complete the work. ","Ea.",2,null,0]
[null,95,"Standard Galvanized Channel  of  220 cm length and 4 inch Size\nSupply and install galvanized C channel of 220 cm length, 4 inch size and 5 mm thick with clamps and screws (for transformer base and expulsion fuse cutout fixation) with clamps and screws, according to the specifications of the Ministry of Electricity, the channel must have suitable holes, with all connection and installation accessories and all the required works to complete the work. ","Ea.",3,null,0]
[null,96,"Expulsion Fuse Cutout of 11 KVa\nSupply, install, connect, test and commission expulsion fuse cutout of 11kVa capacity and  Turkish origin or equivalent which should be approved by the supervisory committee before starting supplying process, with all connection and installation accessories and all the required works to complete the work. See the expulsion fuse cutout specifications in attached Annex A (D-25).","Set",1,null,0]
[null,97,"Surge Arrester of 11 kV capacity\nSupply, install and connect surge arrester of 11 kV capacity and Turkish origin or equivalent which should be approved by the supervisory committee before starting supplying process, with all connection and installation accessories and all the required works to complete the work, according to the specifications of the Ministry of Electricity. For more deteils, See attached Annex A. ","Set",1,null,0]
[null,98,"Earth Rod Copper Bar\nSupply, install and connect earth rod copper bar of 1/2 inch diameter and 1.5m length with clamp according to the specifications of the Ministry of Electricity, with all connection and installation accessories and all the required works to complete the work.","Ea.",2,null,0]
[null,99,"Copper Conductor of 50 mm\nSupply, install and connect copper conductor of 50 mm2 to connect the transformer with 11 KV  feeders, with all connection and installation accessories, terminals (lugs), metal parallel groove connectors (Aluminum-Copper) according to the wire size, stainless steel preformed band clamps and all the required works to complete the work.  See the copper conductor specifications in attached Annex A (D-47). ","M.l",22,null,0]
[null,100,"PVC Insulated Single Core LV Cu Cable of 1x50 mm2\nSupply, install and connect PVC insulated single core LV Cu cable of 1x50 mm2 of Turkish origin or equivalent which should be approved by the supervisory committee before starting supplying process to connect the surge arrester set and electrical transformer with earth rod copper bars, with all connection and installation accessories, cable terminals (lugs), metal parallel groove connectors (Aluminum-Copper) according to the cable size,  stainless steel T-bolt and preformed band clamps and all the required works to complete the work. See the cable specifications in attached Annex A (D-04).","M.l",25,null,0]
[null,101,"PVC Insulated Single Core LV Cu Cable of 1x120 mm2\nSupply, install and connect PVC insulated single core LV Cu cable of 1x120 mm2  of Turkish origin or equivalent which should be approved by the supervisory committee before starting supplying process to connect between the transformer with the electrical distribution board under the transformer as well as with low voltage feeders, with all connection and installation accessories, cable terminals (lugs), metal parallel groove connectors (Aluminum-Copper) according to the cable size, stainless steel T-bolt and preformed band clamps and all the required works to complete the work. See the cable specifications in attached Annex A (D-04)","M.l",35,null,0]
[null,102,"11kV Pin Insulator with Spindle  \nSupply, install and connect 11 KV pin insulator with spindle of Turkish origin or equivalent which should be approved by the supervisory committee before starting supplying process, with all connection and installation accessories, bolts and all the required works to complete the work. See the pin insulator specifications in attached Annex A (D-24).","Ea.",12,null,0]
[null,103,"11 kV Disk Insulator  \nSupply, install and connect 11 KV disk insulator of Turkish origin or equivalent which should be approved by the supervisory committee before starting supplying process with its accessories (couple disks of 11kV with the ring, socket A, A and U bolt),with all connection and installation accessories, and all the required works to complete the work. See the disk Insulator specifications in Annex A (D-24).","Ea.",6,null,0]
[null,104,"AAC Conductor of (95) mm2\nSupply, install, connect, test and commission all aluminum conductor (AAC) of (95)mm2, with all connection and installation accessories, terminals,  metal parallel groove connectors (Aluminum-Aluminum) and and (Aluminum-Copper) according to the wire size and all the required works to complete the work. See the conductor specifications in Annex A (D-47) .","M.l",150,null,0]
[null,"G -  Gardens Works "]
[null,105,"Supply materials, tools and manpower to backfill the garden with clean soil and planting it as per the supervisory committee directions, the work includes the following: "]
[null,"A","Backfilling with clean, blended and screened Loam soil layer in addition to free of impurities and salts of 40 cm thick.","M3",150,null,{"$f":"E203*F203","v":0}]
[null,"B","Supply and install concrete garden edge for the front garden of (75 cm) length and (35 cm) height with well installation using cement- sand mortar, the work includes painting using one layer of plastic based paint and three layers of oil based paints, and all the related accessories required to complete the Job","M.l",110,null,0]
[null,"C","Supplying and planting American natural grass, It should be supplied in the form of pieces of 35x35 cm dimensions, each 2 pieces are divided into small pieces to cover 1m2 area","Piece",200,null,0]
[null,"D","Supplying and planting the palm trees with not less than 2m length.","Ea.",10,null,0]
[null,"E","Supplying and planting the ficus tree with not less than 1.5m length.","Ea.",10,null,0]
[null,"F","Supplying and planting Rose flowers with not less than 1.m length.","Ea.",30,null,0]
[null,"Total Cost $"]
[]
[]
[null,null,"Name of Bidder: ",null,"________________________________________________"]
[]
[null,null,"Authorised signature: ",null,"________________________________________________"]
[]
[null,null,"Name of authorised signatory:",null,"________________________________________________"]